fUSD/lending_fUSD_20251115
["ID","MTS","AMOUNT","RATE_DAILY","PERIOD"]
[394058734,1763235952952,-755.397034,0.0004144,120]
[394058735,1763235952978,-755.397034,0.0004144,120]
[394058736,1763235953008,-755.397034,0.0004144,120]
[394058737,1763235953033,-261.412031,0.0004144,120]
[394058738,1763235953059,-261.412031,0.0004144,120]
[394058739,1763235953086,-261.412031,0.0004144,120]
[394058740,1763235953111,-261.412031,0.0004144,120]
[394058741,1763235953139,-151.0,0.0004144,120]
[394058742,1763235953166,-151.0,0.0004144,120]
[394058743,1763235953194,-164.85894774,0.0004144,30]
[394058744,1763235953221,-151.0,0.0004144,120]
[394058745,1763235953246,-164.85894774,0.0004144,30]
[394058746,1763235953272,-151.0,0.0004144,120]
[394058747,1763235953298,-151.0,0.0004144,120]
[394058748,1763235953323,-151.0,0.0004144,120]
[394058749,1763235953349,-161.445309,0.0004144,120]
[394058750,1763235953375,-151.0,0.0004144,120]
[394058751,1763235953400,-151.0,0.0004144,120]
[394058752,1763235953425,-151.0,0.0004144,120]
[394058753,1763235953451,-151.0,0.0004144,120]
[394058754,1763235953476,-151.0,0.0004144,120]
[394058755,1763235953503,-151.0,0.0004144,120]
[394058756,1763235953528,-151.0,0.0004144,120]
[394058757,1763235953554,-151.0,0.0004144,120]
[394058758,1763235953590,-151.0,0.0004144,120]
[394058759,1763235953619,-151.0,0.0004144,120]
[394058760,1763235953651,-151.0,0.0004144,90]
[394058761,1763235953682,-184.778557,0.0004144,120]
[394058762,1763235953718,-151.0,0.0004144,120]
[394058763,1763235953747,-151.0,0.0004144,120]
[394058764,1763235953776,-151.0,0.0004144,120]
[394058765,1763235953805,-151.0,0.0004144,120]
[394058766,1763235953831,-400.798331,0.0004144,120]
[394058767,1763235953857,-400.798331,0.0004144,120]
[394058768,1763235953883,-400.798331,0.0004144,120]
[394058769,1763235953909,-400.798331,0.0004144,120]
[394058770,1763235953936,-151.0,0.0004144,120]
[394058771,1763235953962,-151.0,0.0004144,120]
[394058772,1763235953988,-151.0,0.0004144,120]
[394058773,1763235954015,-151.0,0.0004144,120]
[394058774,1763235954041,-159.291271,0.0004144,120]
[394058775,1763235954067,-151.0,0.0004144,120]
[394058776,1763235954092,-166.978154,0.0004144,120]
[394058777,1763235954121,-151.0,0.0004144,120]
[394058778,1763235954150,-151.0,0.0004144,120]
[394058779,1763235954177,-151.0,0.0004144,120]
[394058780,1763235954203,-151.0,0.0004144,120]
[394058781,1763235954229,-151.0,0.0004144,120]
[394058782,1763235954255,-151.0,0.0004144,120]
[394058783,1763235954282,-151.0,0.0004144,120]
[394058784,1763235954307,-151.0,0.0004144,120]
[394058785,1763235954334,-151.0,0.0004144,120]
[394058786,1763235954359,-151.0,0.0004144,120]
[394058787,1763235954385,-151.0,0.0004144,120]
[394058788,1763235954410,-160.70303,0.0004144,120]
[394058789,1763235954435,-151.0,0.0004144,120]
[394058790,1763235954461,-151.0,0.0004144,120]
[394058791,1763235954488,-468.55,0.0004144,30]
[394058792,1763235954515,-468.55,0.0004144,30]
[394058793,1763235954542,-468.55,0.0004144,30]
[394058794,1763235954566,-151.0,0.0004144,120]
[394058795,1763235954591,-468.55,0.0004144,30]
[394058796,1763235954619,-151.0,0.0004144,120]
[394058797,1763235954648,-151.0,0.0004144,120]
[394058798,1763235954673,-151.0,0.0004144,120]
[394058799,1763235954699,-151.0,0.0004144,120]
[394058800,1763235954727,-151.0,0.0004144,120]
[394058801,1763235954752,-151.0,0.0004144,120]
[394058802,1763235954778,-151.0,0.0004144,120]
[394058803,1763235954803,-151.0,0.0004144,120]
[394058804,1763235954828,-151.0,0.0004144,60]
[394058805,1763235954853,-151.0,0.0004144,120]
[394058806,1763235954879,-151.0,0.0004144,120]
[394058807,1763235954904,-151.0,0.0004144,120]
[394058808,1763235954930,-151.0,0.0004144,120]
[394058809,1763235954956,-151.723148,0.0004144,120]
[394058810,1763235954983,-151.0,0.0004144,120]
[394058811,1763235955008,-156.312673,0.0004144,120]
[394058812,1763235955033,-154.381413,0.0004144,120]
[394058813,1763235955059,-151.0,0.0004144,120]
[394058814,1763235955085,-151.0,0.0004144,120]
[394058815,1763235955111,-219.406376,0.0004144,120]
[394058816,1763235955137,-156.508496,0.0004144,120]
[394058817,1763235955163,-154.922288,0.0004144,120]
[394058818,1763235955187,-151.0,0.0004144,120]
[394058819,1763235955212,-152.623247,0.0004144,120]
[394058820,1763235955237,-151.0,0.0004144,120]
[394058821,1763235955261,-151.0,0.0004144,120]
[394058822,1763235955285,-151.0,0.0004144,120]
[394058823,1763235955309,-151.0,0.0004144,120]
[394058824,1763235955333,-151.0,0.0004144,120]
[394058825,1763235955361,-175.174058,0.0004144,120]
[394058826,1763235955385,-159.033963,0.0004144,120]
[394058827,1763235955410,-151.0,0.0004144,120]
[394058828,1763235955434,-151.589397,0.0004144,120]
[394058829,1763235955458,-161.983103,0.0004144,120]
[394058830,1763235955487,-151.0,0.0004144,120]
[394058831,1763235955513,-151.0,0.0004144,120]
[394058832,1763235955539,-151.0,0.0004144,120]
[394058833,1763235955564,-151.0,0.0004144,120]
[394058834,1763235955589,-151.0,0.0004144,120]
[394058835,1763235955614,-151.0,0.0004144,120]
[394058836,1763235955639,-151.0,0.0004144,120]
[394058837,1763235955663,-151.0,0.0004144,120]
[394058838,1763235955688,-151.0,0.0004144,120]
[394058839,1763235955713,-151.0,0.0004144,120]
[394058840,1763235955738,-154.557523,0.0004144,120]
[394058841,1763235955763,-270.315272,0.0004144,120]
[394058842,1763235955788,-151.0,0.0004144,120]
[394058843,1763235955814,-171.825475,0.0004144,120]
[394058844,1763235955841,-151.0,0.0004144,120]
[394058845,1763235955866,-151.0,0.0004144,120]
[394058846,1763235955891,-151.0,0.0004144,120]
[394058847,1763235955918,-158.324047,0.0004144,120]
[394058848,1763235955943,-151.0,0.0004144,120]
[394058849,1763235955971,-158.324047,0.0004144,120]
[394058850,1763235955996,-151.0,0.0004144,120]
[394058851,1763235956022,-156.015428,0.0004144,60]
[394058852,1763235956048,-151.0,0.0004144,120]
[394058853,1763235956076,-158.324047,0.0004144,120]
[394058854,1763235956101,-158.898791,0.0004144,120]
[394058855,1763235956145,-158.324047,0.0004144,120]
[394058856,1763235956183,-151.0,0.0004144,120]
[394058857,1763235956210,-220.574613,0.0004144,120]
[394058858,1763235956237,-151.0,0.0004144,120]
[394058859,1763235956263,-151.0,0.0004144,120]
[394058860,1763235956287,-151.0,0.0004144,30]
[394058861,1763235956312,-151.0,0.0004144,120]
[394058862,1763235956337,-193.063553,0.00041456,120]
[394058863,1763235956361,-151.0,0.00041456,120]
[394058864,1763235956532,-158.497261,0.00041456,120]
[394058865,1763235956560,-151.0,0.00041456,120]
[394058866,1763235956594,-151.0,0.00041456,120]
[394058867,1763235956629,-151.0,0.00041456,120]
[394058868,1763235956657,-240.97154,0.00041456,120]
[394058869,1763235956685,-151.0,0.00041456,120]
[394058870,1763235956712,-151.0,0.00041456,120]
[394058871,1763235956740,-252.409827,0.00041456,120]
[394058872,1763235956769,-151.0,0.00041456,120]
[394058873,1763235956796,-151.0,0.00041456,120]
[394058874,1763235956823,-189.50216,0.00041456,120]
[394058875,1763235956849,-189.50216,0.00041456,120]
[394058876,1763235956878,-189.50216,0.00041456,120]
[394058877,1763235956906,-189.50216,0.00041456,120]
[394058878,1763235956934,-189.50216,0.00041456,120]
[394058879,1763235956962,-189.50216,0.00041456,120]
[394058880,1763235956989,-189.50216,0.00041456,120]
[394058881,1763235957015,-189.50216,0.00041456,120]
[394058882,1763235957041,-189.50216,0.00041456,120]
[394058883,1763235957073,-189.50216,0.00041456,120]
[394058884,1763235957101,-189.50216,0.00041456,120]
[394058885,1763235957133,-189.50216,0.00041456,120]
[394058886,1763235957161,-151.0,0.00041456,120]
[394058887,1763235957190,-151.0,0.00041456,120]
[394058888,1763235957217,-151.0,0.00041456,120]
[394058889,1763235957245,-151.0,0.00041456,120]
[394058890,1763235957273,-215.191817,0.00041456,120]
[394058891,1763235957300,-151.0,0.00041456,120]
[394058892,1763235957326,-255.28975,0.00041456,120]
[394058893,1763235957352,-151.0,0.00041456,120]
[394058894,1763235957379,-151.0,0.00041456,120]
[394058895,1763235957405,-151.0,0.00041456,120]
[394058896,1763235957430,-224.439472,0.00041456,120]
[394058897,1763235957457,-151.0,0.00041456,120]
[394058898,1763235957483,-151.0,0.00041456,120]
[394058899,1763235957509,-151.0,0.00041456,120]
[394058900,1763235957540,-151.0,0.00041456,120]
[394058901,1763235957565,-151.0,0.00041456,120]
[394058902,1763235957592,-192.34866,0.00041456,120]
[394058903,1763235957618,-151.0,0.00041456,120]
[394058904,1763235957644,-151.0,0.00041456,120]
[394058905,1763235957671,-151.0,0.00041456,120]
[394058906,1763235957698,-171.004162,0.00041456,120]
[394058907,1763235957725,-151.0,0.00041456,120]
[394058908,1763235957753,-151.0,0.00041456,120]
[394058909,1763235957784,-151.0,0.00041456,120]
[394058910,1763235957810,-151.0,0.00041456,120]
[394058911,1763235957836,-151.0,0.00041456,120]
[394058912,1763235957863,-151.0,0.00041456,120]
[394058913,1763235957892,-151.0,0.00041456,120]
[394058914,1763235957920,-151.0,0.00041456,120]
[394058915,1763235957948,-151.0,0.00041456,120]
[394058916,1763235957976,-151.0,0.00041456,120]
[394058917,1763235958002,-151.0,0.00041456,120]
[394058918,1763235958029,-151.0,0.00041456,120]
[394058919,1763235958055,-151.0,0.00041456,120]
[394058920,1763235958082,-151.0,0.00041456,120]
[394058921,1763235958107,-151.0,0.00041456,120]
[394058922,1763235958136,-151.0,0.00041456,120]
[394058923,1763235958165,-151.0,0.00041456,120]
[394058924,1763235958190,-280.500924,0.00041456,120]
[394058925,1763235958216,-151.0,0.00041456,120]
[394058926,1763235958242,-151.0,0.00041456,120]
[394058927,1763235958267,-151.0,0.00041456,120]
[394058928,1763235958292,-151.0,0.00041456,120]
[394058929,1763235958318,-202.934356,0.00041456,120]
[394058930,1763235958343,-202.934356,0.00041456,120]
[394058931,1763235958373,-312.120822,0.00041456,120]
[394058932,1763235958398,-202.934356,0.00041456,120]
[394058933,1763235958429,-202.934356,0.00041456,120]
[394058934,1763235958454,-312.120822,0.00041456,120]
[394058935,1763235958480,-312.120822,0.00041456,120]
[394058936,1763235958506,-202.934356,0.00041456,120]
[394058937,1763235958532,-202.934356,0.00041456,120]
[394058938,1763235958558,-312.120822,0.00041456,120]
[394058939,1763235958585,-202.934356,0.00041456,120]
[394058940,1763235958611,-312.120822,0.00041456,120]
[394058941,1763235958639,-202.934348,0.00041456,120]
[394058942,1763235958665,-312.120822,0.00041456,120]
[394058943,1763235958691,-312.120822,0.00041456,120]
[394058944,1763235958716,-312.120822,0.00041456,120]
[394058945,1763235958744,-151.0,0.00041456,120]
[394058946,1763235958772,-312.120822,0.00041456,120]
[394058947,1763235958799,-312.120822,0.00041456,120]
[394058948,1763235958825,-312.120822,0.00041456,120]
[394058949,1763235958851,-312.120822,0.00041456,120]
[394058950,1763235958879,-160.342941,0.00041456,120]
[394058951,1763235958907,-155.320944,0.00041456,120]
[394058952,1763235958935,-156.273362,0.00041456,120]
[394058953,1763235958962,-284.545379,0.00041456,120]
[394058954,1763235958991,-163.934065,0.00041456,120]
[394058955,1763235959018,-151.0,0.00041456,120]
[394058956,1763235959044,-151.0,0.00041456,120]
[394058957,1763235959070,-151.0,0.00041456,120]
[394058958,1763235959096,-200.17065,0.00041456,120]
[394058959,1763235959124,-200.17065,0.00041456,120]
[394058960,1763235959151,-200.17065,0.00041456,120]
[394058961,1763235959176,-200.17065,0.00041456,120]
[394058962,1763235959201,-200.17065,0.00041456,120]
[394058963,1763235959226,-200.17065,0.00041456,120]
[394058964,1763235959251,-151.0,0.00041456,120]
[394058965,1763235959287,-200.17065,0.00041456,120]
[394058966,1763235959312,-151.0,0.00041456,120]
[394058967,1763235959337,-200.17065,0.00041456,120]
[394058968,1763235959363,-151.0,0.00041456,120]
[394058969,1763235959389,-200.17065,0.00041456,120]
[394058970,1763235959415,-200.17065,0.00041456,120]
[394058971,1763235959441,-200.17065,0.00041456,120]
[394058972,1763235959467,-200.170644,0.00041456,120]
[394058973,1763235959492,-151.0,0.00041456,120]
[394058974,1763235959520,-151.0,0.00041456,60]
[394058975,1763235959545,-280.368315,0.00041456,60]
[394058976,1763235959570,-151.0,0.00041456,120]
[394058977,1763235959596,-151.0,0.00041456,120]
[394058978,1763235959622,-151.0,0.00041456,120]
[394058979,1763235959649,-151.0,0.00041456,120]
[394058980,1763235959675,-151.0,0.00041456,120]
[394058981,1763235959703,-151.0,0.00041456,120]
[394058982,1763235959737,-755.397034,0.00041456,120]
[394058983,1763235959764,-755.397034,0.00041456,120]
[394058984,1763235959791,-755.397034,0.00041456,120]
[394058985,1763235959816,-195.560036,0.00041456,120]
[394058986,1763235959842,-755.397034,0.00041456,120]
[394058987,1763235959870,-755.397034,0.00041456,120]
[394058988,1763235959897,-755.397034,0.00041456,120]
[394058989,1763235959924,-755.397034,0.00041456,120]
[394058990,1763235959951,-755.397034,0.00041456,120]
[394058991,1763235959977,-755.397034,0.00041456,120]
[394058992,1763235960003,-755.397034,0.00041456,120]
[394058993,1763235960031,-755.397034,0.00041456,120]
[394058994,1763235960059,-755.397026,0.00041456,120]
[394058995,1763235960303,-261.412031,0.00041456,120]
[394058996,1763235960339,-261.412031,0.00041456,120]
[394058997,1763235960367,-261.412031,0.00041456,120]
[394058998,1763235960394,-261.412031,0.00041456,120]
[394058999,1763235960420,-261.412031,0.00041456,120]
[394059000,1763235960446,-261.412031,0.00041456,120]
[394059001,1763235960472,-261.412031,0.00041456,120]
[394059002,1763235960498,-261.412031,0.00041456,120]
[394059003,1763235960523,-261.412031,0.00041456,120]
[394059004,1763235960549,-261.412031,0.00041456,120]
[394059005,1763235960578,-261.412031,0.00041456,120]
[394059006,1763235960603,-261.412035,0.00041456,120]
[394059007,1763235960628,-151.0,0.00041456,120]
[394059008,1763235960655,-151.0,0.00041456,120]
[394059009,1763235960680,-151.0,0.00041456,120]
[394059010,1763235960705,-151.0,0.00041456,120]
[394059011,1763235960730,-193.877394,0.00041456,120]
[394059012,1763235960756,-151.0,0.00041456,120]
[394059013,1763235960782,-151.0,0.00041456,120]
[394059014,1763235960811,-151.0,0.00041456,120]
[394059015,1763235960836,-151.0,0.00041456,120]
[394059016,1763235960863,-151.0,0.00041456,120]
[394059017,1763235960890,-151.0,0.00041456,120]
[394059018,1763235960916,-151.0,0.00041456,120]
[394059019,1763235960942,-151.0,0.00041456,120]
[394059020,1763235960967,-151.0,0.00041456,120]
[394059021,1763235960992,-164.301287,0.00041456,120]
[394059022,1763235961018,-220.340805,0.00041456,120]
[394059023,1763235961045,-151.0,0.00041456,120]
[394059024,1763235961070,-151.0,0.00041456,120]
[394059025,1763235961096,-151.0,0.00041456,120]
[394059026,1763235961125,-151.0,0.00041456,120]
[394059027,1763235961151,-151.0,0.00041456,120]
[394059028,1763235961178,-152.83441,0.00041456,120]
[394059029,1763235961204,-151.000014,0.00041456,120]
[394059030,1763235961229,-200.992172,0.00041456,120]
[394059031,1763235961255,-151.0,0.00041456,120]
[394059032,1763235961279,-279.44151,0.00041456,120]
[394059033,1763235961305,-151.0,0.00041456,120]
[394059034,1763235961330,-208.097923,0.00041456,120]
[394059035,1763235961355,-151.0,0.00041456,120]
[394059036,1763235961382,-151.0,0.00041456,120]
[394059037,1763235961408,-151.0,0.00041456,120]
[394059038,1763235961433,-203.293332,0.00041456,120]
[394059039,1763235961458,-151.0,0.00041456,90]
[394059040,1763235961484,-160.103571,0.00041456,90]
[394059041,1763235961510,-151.0,0.00041456,120]
[394059042,1763235961536,-151.0,0.00041456,120]
[394059043,1763235961562,-151.0,0.00041456,120]
[394059044,1763235961588,-151.0,0.00041456,120]
[394059045,1763235961613,-151.0,0.00041456,120]
[394059046,1763235961640,-151.0,0.00041456,120]
[394059047,1763235961665,-169.669524,0.00041456,120]
[394059048,1763235961694,-400.798331,0.00041456,120]
[394059049,1763235961720,-400.798331,0.00041456,120]
[394059050,1763235961745,-400.798331,0.00041456,120]
[394059051,1763235961770,-400.798331,0.00041456,120]
[394059052,1763235961795,-400.798331,0.00041456,120]
[394059053,1763235961821,-400.798331,0.00041456,120]
[394059054,1763235961846,-400.798331,0.00041456,120]
[394059055,1763235961872,-400.798331,0.00041456,120]
[394059056,1763235961898,-400.798331,0.00041456,120]
[394059057,1763235961924,-400.798331,0.00041456,120]
[394059058,1763235961949,-400.798331,0.00041456,120]
[394059059,1763235961975,-400.798335,0.00041456,120]
[394059060,1763235962002,-151.0,0.00041456,120]
[394059061,1763235962029,-151.0,0.00041456,120]
[394059062,1763235962055,-151.0,0.00041456,120]
[394059063,1763235962081,-151.0,0.00041456,120]
[394059064,1763235962110,-151.0,0.00041456,120]
[394059065,1763235962138,-151.0,0.00041456,120]
[394059066,1763235962166,-151.0,0.00041456,120]
[394059067,1763235962193,-154.54048,0.00041456,120]
[394059068,1763235962221,-151.0,0.00041456,120]
[394059069,1763235962246,-151.0,0.00041456,120]
[394059070,1763235962272,-151.0,0.00041456,120]
[394059071,1763235962298,-151.0,0.00041456,120]
[394059072,1763235962325,-151.0,0.00041456,120]
[394059073,1763235962352,-151.0,0.00041456,120]
[394059074,1763235962378,-151.0,0.00041456,120]
[394059075,1763235962406,-151.0,0.00041456,120]
[394059076,1763235962432,-151.0,0.00041456,120]
[394059077,1763235962458,-151.0,0.00041456,120]
[394059078,1763235962484,-151.0,0.00041456,120]
[394059079,1763235962510,-151.0,0.00041456,120]
[394059080,1763235962536,-151.0,0.00041456,120]
[394059081,1763235962562,-151.0,0.00041456,120]
[394059082,1763235962590,-151.0,0.00041456,120]
[394059083,1763235962617,-151.0,0.00041456,120]
[394059084,1763235962643,-301.796352,0.00041456,120]
[394059085,1763235962669,-151.0,0.00041456,120]
[394059086,1763235962697,-151.0,0.00041456,120]
[394059087,1763235962723,-151.0,0.00041456,120]
[394059088,1763235962748,-151.0,0.00041456,120]
[394059089,1763235962772,-281.536149,0.00041456,120]
[394059090,1763235962799,-468.55,0.00041456,30]
[394059091,1763235962825,-468.55,0.00041456,30]
[394059092,1763235962853,-468.55,0.00041456,30]
[394059093,1763235962883,-468.55,0.00041456,30]
[394059094,1763235962912,-468.55,0.00041456,30]
[394059095,1763235962941,-468.55,0.00041456,30]
[394059096,1763235962968,-468.55,0.00041456,30]
[394059097,1763235962996,-468.55,0.00041456,30]
[394059098,1763235963030,-468.55,0.00041456,30]
[394059099,1763235963059,-468.55,0.00041456,30]
[394059100,1763235963089,-468.55,0.00041456,30]
[394059101,1763235963125,-468.550008,0.00041456,30]
[394059102,1763235963153,-151.0,0.00041456,120]
[394059103,1763235963181,-151.0,0.00041456,120]
[394059104,1763235963208,-151.0,0.00041456,120]
[394059105,1763235963235,-250.615632,0.00041456,120]
[394059106,1763235963262,-249.141003,0.00041456,120]
[394059107,1763235963290,-151.0,0.00041456,120]
[394059108,1763235963317,-151.0,0.00041456,120]
[394059109,1763235963344,-151.0,0.00041456,120]
[394059110,1763235963371,-151.0,0.00041456,120]
[394059111,1763235963397,-151.0,0.00041456,120]
[394059112,1763235963425,-151.0,0.00041456,120]
[394059113,1763235963452,-151.0,0.00041456,120]
[394059114,1763235963479,-151.0,0.00041456,120]
[394059115,1763235963507,-151.0,0.00041456,120]
[394059116,1763235963534,-151.0,0.00041456,120]
[394059117,1763235963561,-151.0,0.00041456,120]
[394059118,1763235963589,-151.0,0.00041456,120]
[394059119,1763235963616,-290.440392,0.00041456,120]
[394059120,1763235963645,-151.0,0.00041456,120]
[394059121,1763235963671,-151.0,0.00041456,120]
[394059122,1763235963699,-151.0,0.00041456,120]
[394059123,1763235963726,-151.0,0.00041456,120]
[394059124,1763235963755,-151.0,0.00041456,120]
[394059125,1763235963781,-151.0,0.00041456,120]
[394059126,1763235963949,-151.0,0.00041456,120]
[394059127,1763235963984,-151.0,0.00041456,120]
[394059128,1763235964013,-151.0,0.00041456,120]
[394059129,1763235964041,-151.0,0.00041456,120]
[394059130,1763235964070,-151.0,0.00041456,120]
[394059131,1763235964096,-151.0,0.00041456,120]
[394059132,1763235964127,-151.0,0.00041456,120]
[394059133,1763235964152,-151.0,0.00041456,120]
[394059134,1763235964177,-151.000011,0.00041456,120]
[394059135,1763235964203,-151.0,0.00041456,120]
[394059136,1763235964229,-151.0,0.00041456,120]
[394059137,1763235964255,-151.0,0.00041456,120]
[394059138,1763235964283,-167.369131,0.00041456,120]
[394059139,1763235964308,-151.0,0.00041456,120]
[394059140,1763235964335,-178.013643,0.00041456,120]
[394059141,1763235964362,-151.0,0.00041456,120]
[394059142,1763235964389,-151.0,0.00041456,120]
[394059143,1763235964416,-151.0,0.00041456,120]
[394059144,1763235964443,-151.0,0.00041456,120]
[394059145,1763235964470,-151.0,0.00041456,120]
[394059146,1763235964497,-151.0,0.00041456,120]
[394059147,1763235964525,-151.0,0.00041456,120]
[394059148,1763235964557,-151.0,0.00041456,120]
[394059149,1763235964589,-151.0,0.00041456,120]
[394059150,1763235964617,-151.0,0.00041456,120]
[394059151,1763235964645,-151.0,0.00041456,120]
[394059152,1763235964673,-151.0,0.00041456,120]
[394059153,1763235964699,-151.0,0.00041456,120]
[394059154,1763235964726,-153.680311,0.00041456,120]
[394059155,1763235964752,-158.324047,0.00041456,120]
[394059156,1763235964780,-157.241708,0.00041456,120]
[394059157,1763235964807,-158.324047,0.00041456,120]
[394059158,1763235964835,-158.324047,0.00041456,120]
[394059159,1763235964865,-158.324047,0.00041456,120]
[394059160,1763235964894,-158.324047,0.00041456,120]
[394059161,1763235964923,-151.0,0.00041456,120]
[394059162,1763235964950,-158.324047,0.00041456,120]
[394059163,1763235965057,-199.0,0.00042739,30]
[394059164,1763235965085,-418.0,0.00043151,90]
[394059165,1763235965120,-349.13,0.000434,60]
[394059166,1763235965150,-500.0,0.00043836,31]
[394059167,1763235965179,-199.0,0.00044109,30]
[394059168,1763235965207,-691.99,0.00044622,30]
[394059169,1763235965233,-533.75,0.00045,30]
[394059170,1763235965260,-422.0,0.00045308,90]
[394059171,1763235965286,-199.0,0.00045479,30]
[394059172,1763235965313,-150.0,0.00046759,30]
[394059173,1763235965339,-150.0,0.00046759,30]
[394059174,1763235965366,-150.0,0.00046759,30]
[394059175,1763235965391,-150.0,0.00046759,30]
[394059176,1763235965416,-150.0,0.00046759,30]
[394059177,1763235965441,-150.0,0.00046759,30]
[394059178,1763235965468,-150.0,0.00046759,30]
[394059179,1763235965496,-150.0,0.00046816,30]
[394059180,1763235965522,-150.0,0.00046822,30]
[394059181,1763235965548,-199.0,0.00046849,30]
[394059182,1763235965573,-150.0,0.00046874,30]
[394059183,1763235965598,-150.0,0.00046885,30]
[394059184,1763235965623,-150.0,0.00046932,30]
[394059185,1763235965648,-150.0,0.00046949,30]
[394059186,1763235965676,-150.0,0.0004699,30]
[394059187,1763235965702,-150.0,0.00047012,30]
[394059188,1763235965728,-150.0,0.00047047,30]
[394059189,1763235965755,-150.0,0.00047075,30]
[394059190,1763235965781,-215.55069301,0.00047104,30]
[394059191,1763235965807,-150.0,0.00047105,30]
[394059192,1763235965833,-150.0,0.00047139,30]
[394059193,1763235965861,-150.0,0.00047163,30]
[394059194,1763235965890,-150.0,0.00047202,30]
[394059195,1763235965917,-150.0,0.0004722,30]
[394059196,1763235965944,-150.0,0.00047265,30]
[394059197,1763235965970,-215.55069301,0.00047273,30]
[394059198,1763235965996,-150.0,0.00047278,30]
[394059199,1763235966024,-150.0,0.00047278,30]
[394059200,1763235966051,-150.0,0.00047329,30]
[394059201,1763235966080,-150.0,0.00047336,30]
[394059202,1763235966106,-150.0,0.00047392,30]
[394059203,1763235966133,-150.0,0.00047394,30]
[394059204,1763235966159,-150.0,0.00047451,30]
[394059205,1763235966186,-150.0,0.00047456,30]
[394059206,1763235966213,-215.55069301,0.0004749,30]
[394059207,1763235966239,-150.0,0.00047501,30]
[394059208,1763235966267,-150.0,0.00047509,30]
[394059209,1763235966293,-150.0,0.00047519,30]
[394059210,1763235966318,-150.0,0.00047567,30]
[394059211,1763235966343,-150.0,0.00047582,30]
[394059212,1763235966369,-150.0,0.00047625,30]
[394059213,1763235966396,-150.0,0.00047646,30]
[394059214,1763235966422,-150.0,0.00047682,30]
[394059215,1763235966447,-150.0,0.00047709,30]
[394059216,1763235966472,-150.0,0.0004774,30]
[394059217,1763235966499,-150.0,0.00047772,30]
[394059218,1763235966524,-215.55069301,0.00047777,30]
[394059219,1763235966550,-150.0,0.00047798,30]
[394059220,1763235966576,-150.0,0.00047798,30]
[394059221,1763235966601,-150.0,0.00047798,30]
[394059222,1763235966630,-150.0,0.00047836,30]
[394059223,1763235966656,-150.0,0.00047855,30]
[394059224,1763235966682,-150.0,0.00047899,30]
[394059225,1763235966711,-150.0,0.00047913,30]
[394059226,1763235966737,-215.55069301,0.00047947,30]
[394059227,1763235966765,-150.0,0.00047962,30]
[394059228,1763235966791,-150.0,0.00047971,30]
[394059229,1763235966817,-150.0,0.00048026,30]
[394059230,1763235966844,-150.0,0.00048029,30]
[394059231,1763235966872,-150.0,0.00048057,30]
[394059232,1763235966900,-150.0,0.00048086,30]
[394059233,1763235966927,-150.0,0.00048089,30]